[Event "Titled Tuesday Blitz March 07 Early 2023"]
[White "De Souza, Cristiano Gomes"]
[Black "Gheorghiu, Calin"]
[WhiteFideId "2151758"]
[BlackFideId "1200305"]
[WhiteElo "2068"]
[BlackElo "2223"]
[Result "1-0"]
[Round "03"]
[TimeControl "180+2"]
[Date "2023.03.07"]
[WhiteClock "0:00:17"]
[BlackClock "0:00:02"]

1. d4 {[%clk 0:03:00]}  Nf6 {[%clk 0:02:57]} 2. c4 {[%clk 0:03:00]}  e6 {[%clk 0:02:55]} 3. Nf3 {[%clk 0:03:00]}  Bb4+ {[%clk 0:02:54]} 4. Bd2 {[%clk 0:03:00]}  Qe7 {[%clk 0:02:53]} 5. g3 {[%clk 0:02:59]}  O-O {[%clk 0:02:51]} 6. Bg2 {[%clk 0:02:59]}  Ne4 {[%clk 0:02:36]} 7. O-O {[%clk 0:02:53]}  Nxd2 {[%clk 0:02:35]} 8. Nbxd2 {[%clk 0:02:53]}  c5 {[%clk 0:02:07]} 9. Nb3 {[%clk 0:02:51]}  cxd4 {[%clk 0:02:03]} 10. a3 {[%clk 0:02:48]}  Bd6 {[%clk 0:01:58]} 11. Rc1 {[%clk 0:02:47]}  e5 {[%clk 0:01:52]} 12. h4 {[%clk 0:02:30]}  Nc6 {[%clk 0:01:49]} 13. Qc2 {[%clk 0:02:22]}  h6 {[%clk 0:01:46]} 14. c5 {[%clk 0:02:21]}  Bc7 {[%clk 0:01:46]} 15. Rfe1 {[%clk 0:02:20]}  d5 {[%clk 0:01:36]} 16. e3 {[%clk 0:02:20]}  dxe3 {[%clk 0:01:33]} 17. Rxe3 {[%clk 0:02:19]}  Bg4 {[%clk 0:01:18]} 18. Rce1 {[%clk 0:02:14]}  Rfe8 {[%clk 0:01:16]} 19. Nbd4 {[%clk 0:02:05]}  Qf6 {[%clk 0:00:59]} 20. Nxc6 {[%clk 0:02:04]}  bxc6 {[%clk 0:00:59]} 21. b4 {[%clk 0:02:01]}  a5 {[%clk 0:00:57]} 22. Qb2 {[%clk 0:01:55]}  axb4 {[%clk 0:00:56]} 23. axb4 {[%clk 0:01:54]}  Rab8 {[%clk 0:00:41]} 24. Nxe5 {[%clk 0:01:52]}  Bxe5 {[%clk 0:00:39]} 25. Rxe5 {[%clk 0:01:51]}  Red8 {[%clk 0:00:29]} 26. Qd4 {[%clk 0:01:45]}  Bf3 {[%clk 0:00:22]} 27. Bxf3 {[%clk 0:01:37]}  Qxf3 {[%clk 0:00:22]} 28. R1e3 {[%clk 0:01:37]}  Qf6 {[%clk 0:00:20]} 29. Kg2 {[%clk 0:01:35]}  Ra8 {[%clk 0:00:15]} 30. Rf3 {[%clk 0:01:24]}  Qg6 {[%clk 0:00:15]} 31. Re7 {[%clk 0:01:23]}  Rf8 {[%clk 0:00:13]} 32. b5 {[%clk 0:01:19]}  cxb5 {[%clk 0:00:12]} 33. Qxd5 {[%clk 0:01:19]}  Ra1 {[%clk 0:00:11]} 34. c6 {[%clk 0:01:13]}  Qb1 {[%clk 0:00:10]} 35. Kh3 {[%clk 0:01:05]}  Qh1+ {[%clk 0:00:08]} 36. Kg4 {[%clk 0:01:05]}  Ra4+ {[%clk 0:00:09]} 37. Kh5 {[%clk 0:01:00]}  Qc1 {[%clk 0:00:03]} 38. Rexf7 {[%clk 0:00:54]}  Rxf7 {[%clk 0:00:02]} 39. Qxf7+ {[%clk 0:00:54]}  Kh8 {[%clk 0:00:03]} 40. Re3 {[%clk 0:00:34]}  Qd1+ {[%clk 0:00:02]} 41. f3 {[%clk 0:00:27]}  Ra8 {[%clk 0:00:02]} 42. Re8+ {[%clk 0:00:25]}  Rxe8 {[%clk 0:00:01]} 43. Qxe8+ {[%clk 0:00:26]}  Kh7 {[%clk 0:00:02]} 44. Qg6+ {[%clk 0:00:22]}  Kg8 {[%clk 0:00:02]} 45. c7 {[%clk 0:00:20]}  Qxf3+ {[%clk 0:00:02]} 46. g4 {[%clk 0:00:17]} 1-0


[Site "https://www.chess.com"]

[Event "Titled Tuesday Blitz March 07 Early 2023"]
[White "Kohler, Aran"]
[Black "Vaglio Mattey, Emanuel"]
[WhiteFideId "1002856"]
[BlackFideId "6504167"]
[WhiteElo "2233"]
[BlackElo "2266"]
[Result "0-1"]
[Round "03"]
[TimeControl "180+2"]
[Date "2023.03.07"]
[WhiteClock "0:00:11"]
[BlackClock "0:00:11"]

1. Nf3 {[%clk 0:02:56]}  g6 {[%clk 0:02:59]} 2. d4 {[%clk 0:02:55]}  Bg7 {[%clk 0:03:00]} 3. c3 {[%clk 0:02:55]}  c5 {[%clk 0:03:00]} 4. Bg5 {[%clk 0:02:50]}  cxd4 {[%clk 0:02:59]} 5. cxd4 {[%clk 0:02:49]}  Nc6 {[%clk 0:02:59]} 6. Nc3 {[%clk 0:02:47]}  Nf6 {[%clk 0:02:47]} 7. e3 {[%clk 0:02:41]}  O-O {[%clk 0:02:43]} 8. Bd3 {[%clk 0:02:41]}  d6 {[%clk 0:02:41]} 9. h4 {[%clk 0:02:41]}  Bg4 {[%clk 0:02:41]} 10. Qb3 {[%clk 0:02:40]}  Na5 {[%clk 0:02:39]} 11. Qa4 {[%clk 0:02:36]}  a6 {[%clk 0:02:16]} 12. Be2 {[%clk 0:02:31]}  b5 {[%clk 0:02:15]} 13. Qd1 {[%clk 0:02:30]}  Rc8 {[%clk 0:02:04]} 14. Rc1 {[%clk 0:02:29]}  Nc4 {[%clk 0:02:05]} 15. b3 {[%clk 0:02:28]}  Nb6 {[%clk 0:01:24]} 16. Bxf6 {[%clk 0:02:28]}  Bxf6 {[%clk 0:01:23]} 17. Ne4 {[%clk 0:02:24]}  Bg7 {[%clk 0:01:19]} 18. O-O {[%clk 0:02:22]}  Nd5 {[%clk 0:01:09]} 19. Qd2 {[%clk 0:02:11]}  Qb6 {[%clk 0:01:01]} 20. Nh2 {[%clk 0:01:57]}  Bd7 {[%clk 0:00:49]} 21. h5 {[%clk 0:01:47]}  Bc6 {[%clk 0:00:49]} 22. hxg6 {[%clk 0:01:41]}  hxg6 {[%clk 0:00:50]} 23. Ng5 {[%clk 0:01:38]}  Qb7 {[%clk 0:00:47]} 24. Bf3 {[%clk 0:01:38]}  Nf6 {[%clk 0:00:46]} 25. Bxc6 {[%clk 0:01:36]}  Rxc6 {[%clk 0:00:47]} 26. Rxc6 {[%clk 0:01:32]}  Qxc6 {[%clk 0:00:48]} 27. Rc1 {[%clk 0:01:31]}  Qd5 {[%clk 0:00:48]} 28. Nhf3 {[%clk 0:01:28]}  Bh6 {[%clk 0:00:49]} 29. Nh3 {[%clk 0:01:25]}  Ne4 {[%clk 0:00:49]} 30. Qa5 {[%clk 0:01:24]}  Ra8 {[%clk 0:00:18]} 31. Qc7 {[%clk 0:01:18]}  Qe6 {[%clk 0:00:14]} 32. Qb7 {[%clk 0:01:09]}  Rd8 {[%clk 0:00:11]} 33. Qxa6 {[%clk 0:01:07]}  Nxf2 {[%clk 0:00:08]} 34. Nxf2 {[%clk 0:01:05]}  Qxe3 {[%clk 0:00:08]} 35. Rf1 {[%clk 0:01:04]}  b4 {[%clk 0:00:06]} 36. Qa5 {[%clk 0:01:03]}  Rb8 {[%clk 0:00:06]} 37. Qa6 {[%clk 0:00:53]}  Bf4 {[%clk 0:00:05]} 38. Qd3 {[%clk 0:00:48]}  Ra8 {[%clk 0:00:05]} 39. Qxe3 {[%clk 0:00:35]}  Bxe3 {[%clk 0:00:06]} 40. Ra1 {[%clk 0:00:34]}  Rc8 {[%clk 0:00:06]} 41. Kf1 {[%clk 0:00:34]}  Rc2 {[%clk 0:00:06]} 42. Ng4 {[%clk 0:00:35]}  Bf4 {[%clk 0:00:06]} 43. Nf2 {[%clk 0:00:32]}  f5 {[%clk 0:00:06]} 44. Nd3 {[%clk 0:00:32]}  Be3 {[%clk 0:00:07]} 45. Nxb4 {[%clk 0:00:31]}  Rf2+ {[%clk 0:00:07]} 46. Ke1 {[%clk 0:00:31]}  Rxg2 {[%clk 0:00:08]} 47. Kd1 {[%clk 0:00:29]}  Rf2 {[%clk 0:00:07]} 48. Ne1 {[%clk 0:00:29]}  Rd2+ {[%clk 0:00:08]} 49. Kc1 {[%clk 0:00:29]}  Re2+ {[%clk 0:00:09]} 50. Kd1 {[%clk 0:00:24]}  Rd2+ {[%clk 0:00:09]} 51. Kc1 {[%clk 0:00:21]}  Rxd4+ {[%clk 0:00:10]} 52. Kb2 {[%clk 0:00:20]}  Rxb4 {[%clk 0:00:10]} 53. Nc2 {[%clk 0:00:20]}  Re4 {[%clk 0:00:09]} 54. a4 {[%clk 0:00:20]}  f4 {[%clk 0:00:08]} 55. a5 {[%clk 0:00:21]}  Ba7 {[%clk 0:00:08]} 56. a6 {[%clk 0:00:20]}  g5 {[%clk 0:00:09]} 57. Rc1 {[%clk 0:00:17]}  f3 {[%clk 0:00:09]} 58. b4 {[%clk 0:00:17]}  f2 {[%clk 0:00:09]} 59. b5 {[%clk 0:00:16]}  g4 {[%clk 0:00:09]} 60. Kb3 {[%clk 0:00:14]}  g3 {[%clk 0:00:10]} 61. Nb4 {[%clk 0:00:14]}  g2 {[%clk 0:00:09]} 62. Nc6 {[%clk 0:00:14]}  Bb6 {[%clk 0:00:10]} 63. a7 {[%clk 0:00:14]}  Bxa7 {[%clk 0:00:10]} 64. Nxa7 {[%clk 0:00:14]}  f1=Q {[%clk 0:00:11]} 65. Rc8+ {[%clk 0:00:13]}  Kf7 {[%clk 0:00:11]} 66. b6 {[%clk 0:00:13]}  Re3+ {[%clk 0:00:11]} 67. Kb4 {[%clk 0:00:12]}  Qb1+ {[%clk 0:00:11]} 68. Ka5 {[%clk 0:00:11]}  Ra3# {[%clk 0:00:11]} 0-1


[Site "https://www.chess.com"]

[Event "Titled Tuesday Blitz March 07 Early 2023"]
[White "Biriukov, Ilja"]
[Black "Bochnicka, Vladimir"]
[WhiteFideId "4113373"]
[BlackFideId "14943450"]
[WhiteElo "2426"]
[BlackElo "2094"]
[Result "0-1"]
[Round "03"]
[TimeControl "180+2"]
[Date "2023.03.07"]
[WhiteClock "0:00:22"]
[BlackClock "0:00:30"]

1. d4 {[%clk 0:02:58]}  Nf6 {[%clk 0:02:58]} 2. Nc3 {[%clk 0:02:58]}  d5 {[%clk 0:02:58]} 3. Bf4 {[%clk 0:02:56]}  g6 {[%clk 0:02:56]} 4. h4 {[%clk 0:02:55]}  h5 {[%clk 0:02:55]} 5. Qd2 {[%clk 0:02:55]}  Bg7 {[%clk 0:02:54]} 6. O-O-O {[%clk 0:02:54]}  c6 {[%clk 0:02:51]} 7. f3 {[%clk 0:02:52]}  b5 {[%clk 0:02:31]} 8. Nh3 {[%clk 0:02:41]}  O-O {[%clk 0:02:30]} 9. Bh6 {[%clk 0:02:40]}  b4 {[%clk 0:02:25]} 10. Na4 {[%clk 0:02:36]}  Qa5 {[%clk 0:02:22]} 11. b3 {[%clk 0:02:34]}  Nbd7 {[%clk 0:02:19]} 12. Bxg7 {[%clk 0:02:33]}  Kxg7 {[%clk 0:02:19]} 13. Qg5 {[%clk 0:02:30]}  Nb6 {[%clk 0:02:14]} 14. Nc5 {[%clk 0:02:18]}  Qxa2 {[%clk 0:02:04]} 15. e4 {[%clk 0:02:07]}  Qa1+ {[%clk 0:01:54]} 16. Kd2 {[%clk 0:02:06]}  Qxd4+ {[%clk 0:01:55]} 17. Nd3 {[%clk 0:02:05]}  dxe4 {[%clk 0:01:55]} 18. Qf4 {[%clk 0:01:49]}  Qc3+ {[%clk 0:01:50]} 19. Ke2 {[%clk 0:01:47]}  exd3+ {[%clk 0:01:49]} 20. cxd3 {[%clk 0:01:48]}  Nbd5 {[%clk 0:01:46]} 21. Qg5 {[%clk 0:01:43]}  Bf5 {[%clk 0:01:42]} 22. Kf2 {[%clk 0:01:37]}  Qd4+ {[%clk 0:01:37]} 23. Kg3 {[%clk 0:01:35]}  Nh7 {[%clk 0:01:28]} 24. Qd2 {[%clk 0:01:26]}  a5 {[%clk 0:01:16]} 25. Kh2 {[%clk 0:01:21]}  a4 {[%clk 0:01:15]} 26. bxa4 {[%clk 0:01:19]}  b3 {[%clk 0:01:14]} 27. Be2 {[%clk 0:01:08]}  b2 {[%clk 0:01:13]} 28. g4 {[%clk 0:01:07]}  hxg4 {[%clk 0:01:08]} 29. fxg4 {[%clk 0:01:08]}  Bxg4 {[%clk 0:01:02]} 30. Bxg4 {[%clk 0:01:05]}  Qxg4 {[%clk 0:01:01]} 31. Rhg1 {[%clk 0:01:06]}  Qxh4 {[%clk 0:01:00]} 32. Qxb2+ {[%clk 0:01:03]}  Nhf6 {[%clk 0:01:00]} 33. Rg3 {[%clk 0:00:51]}  Rxa4 {[%clk 0:00:58]} 34. Rdg1 {[%clk 0:00:49]}  Rfa8 {[%clk 0:00:54]} 35. R1g2 {[%clk 0:00:48]}  Nf4 {[%clk 0:00:50]} 36. Qe5 {[%clk 0:00:43]}  Nxg2 {[%clk 0:00:39]} 37. Rxg2 {[%clk 0:00:40]}  R8a5 {[%clk 0:00:36]} 38. Qb2 {[%clk 0:00:27]}  Rh5 {[%clk 0:00:32]} 39. Rg3 {[%clk 0:00:24]}  Rg4 {[%clk 0:00:29]} 40. Qf2 {[%clk 0:00:22]}  Qxg3+ {[%clk 0:00:28]} 41. Qxg3 {[%clk 0:00:22]}  Rxg3 {[%clk 0:00:29]} 42. Kxg3 {[%clk 0:00:22]}  Rxh3+ {[%clk 0:00:30]} 0-1


[Site "https://www.chess.com"]

[Event "Titled Tuesday Blitz March 07 Early 2023"]
[White "Hindermann, Felix"]
[Black "Araujo, Everson De Moura"]
[WhiteFideId "1305212"]
[BlackFideId "22737197"]
[WhiteElo "2206"]
[BlackElo "2035"]
[Result "1-0"]
[Round "03"]
[TimeControl "180+2"]
[Date "2023.03.07"]
[WhiteClock "0:00:45"]
[BlackClock "0:00:42"]

1. e4 {[%clk 0:01:57]}  e6 {[%clk 0:02:57]} 2. d4 {[%clk 0:01:57]}  d5 {[%clk 0:02:57]} 3. e5 {[%clk 0:01:58]}  c5 {[%clk 0:02:57]} 4. c3 {[%clk 0:01:59]}  Nc6 {[%clk 0:02:56]} 5. Be3 {[%clk 0:01:59]}  Qb6 {[%clk 0:02:53]} 6. Qd2 {[%clk 0:01:59]}  cxd4 {[%clk 0:02:50]} 7. cxd4 {[%clk 0:01:59]}  Bd7 {[%clk 0:02:49]} 8. Nc3 {[%clk 0:02:00]}  Rc8 {[%clk 0:02:47]} 9. Nf3 {[%clk 0:01:59]}  Nge7 {[%clk 0:02:42]} 10. Bd3 {[%clk 0:01:59]}  Nb4 {[%clk 0:02:36]} 11. Bb1 {[%clk 0:01:58]}  Ng6 {[%clk 0:02:30]} 12. h4 {[%clk 0:01:54]}  Nc6 {[%clk 0:02:19]} 13. h5 {[%clk 0:01:53]}  Nge7 {[%clk 0:02:19]} 14. h6 {[%clk 0:01:54]}  g6 {[%clk 0:02:17]} 15. Bg5 {[%clk 0:01:51]}  Nf5 {[%clk 0:02:14]} 16. Bf6 {[%clk 0:01:51]}  Rg8 {[%clk 0:02:09]} 17. Bxf5 {[%clk 0:01:36]}  gxf5 {[%clk 0:02:04]} 18. g3 {[%clk 0:01:34]}  Be7 {[%clk 0:01:55]} 19. Bxe7 {[%clk 0:01:32]}  Nxe7 {[%clk 0:01:56]} 20. Ng5 {[%clk 0:01:27]}  Nc6 {[%clk 0:01:45]} 21. Nxh7 {[%clk 0:01:25]}  Nxd4 {[%clk 0:01:41]} 22. Nf6+ {[%clk 0:01:25]}  Kd8 {[%clk 0:01:37]} 23. h7 {[%clk 0:01:19]}  Rh8 {[%clk 0:01:33]} 24. Qh6 {[%clk 0:01:15]}  Qxb2 {[%clk 0:01:24]} 25. O-O {[%clk 0:01:06]}  Qxc3 {[%clk 0:01:09]} 26. Qg7 {[%clk 0:01:02]}  Ke7 {[%clk 0:00:50]} 27. Nxd5+ {[%clk 0:00:44]}  exd5 {[%clk 0:00:49]} 28. Qf6+ {[%clk 0:00:45]}  Ke8 {[%clk 0:00:43]} 29. Qxh8+ {[%clk 0:00:45]}  Ke7 {[%clk 0:00:42]} 30. Qf6+ {[%clk 0:00:45]}  Ke8 {[%clk 0:00:42]} 31. h8=Q# {[%clk 0:00:45]} 1-0


[Site "https://www.chess.com"]

[Event "Titled Tuesday Blitz March 07 Early 2023"]
[White "Kuchava, Ana"]
[Black "Shevtchenko, Olesya"]
[WhiteFideId "13605348"]
[BlackFideId "24131890"]
[WhiteElo "2001"]
[BlackElo "2003"]
[Result "0-1"]
[Round "03"]
[TimeControl "180+2"]
[Date "2023.03.07"]
[WhiteClock "0:00:06"]
[BlackClock "0:01:43"]

1. d4 {[%clk 0:03:00]}  h5 {[%clk 0:02:57]} 2. c4 {[%clk 0:02:56]}  h4 {[%clk 0:02:58]} 3. Nc3 {[%clk 0:02:53]}  Nf6 {[%clk 0:02:58]} 4. h3 {[%clk 0:02:44]}  d5 {[%clk 0:02:57]} 5. cxd5 {[%clk 0:02:37]}  Nxd5 {[%clk 0:02:57]} 6. Nf3 {[%clk 0:02:28]}  g6 {[%clk 0:02:50]} 7. e4 {[%clk 0:02:27]}  Nxc3 {[%clk 0:02:46]} 8. bxc3 {[%clk 0:02:25]}  c5 {[%clk 0:02:45]} 9. Bg5 {[%clk 0:02:21]}  Bg7 {[%clk 0:02:43]} 10. Bxh4 {[%clk 0:02:19]}  cxd4 {[%clk 0:02:34]} 11. cxd4 {[%clk 0:02:18]}  Nc6 {[%clk 0:02:35]} 12. e5 {[%clk 0:02:15]}  Nxd4 {[%clk 0:02:24]} 13. Qxd4 {[%clk 0:01:55]}  Qxd4 {[%clk 0:02:23]} 14. Nxd4 {[%clk 0:01:55]}  Rxh4 {[%clk 0:02:23]} 15. Bb5+ {[%clk 0:01:49]}  Kf8 {[%clk 0:02:22]} 16. Nf3 {[%clk 0:01:48]}  Re4+ {[%clk 0:02:14]} 17. Kf1 {[%clk 0:01:31]}  Bxe5 {[%clk 0:02:14]} 18. Rd1 {[%clk 0:01:30]}  Bd6 {[%clk 0:02:13]} 19. g3 {[%clk 0:01:10]}  Be6 {[%clk 0:02:10]} 20. Rd2 {[%clk 0:00:57]}  Rb4 {[%clk 0:02:10]} 21. Bd3 {[%clk 0:00:52]}  Ra4 {[%clk 0:02:06]} 22. Bb1 {[%clk 0:00:47]}  Rc8 {[%clk 0:02:02]} 23. Kg2 {[%clk 0:00:45]}  Kg7 {[%clk 0:02:02]} 24. Rhd1 {[%clk 0:00:40]}  Rc3 {[%clk 0:02:00]} 25. Nd4 {[%clk 0:00:24]}  Bd5+ {[%clk 0:01:57]} 26. Kh2 {[%clk 0:00:24]}  Bc4 {[%clk 0:01:50]} 27. Ne2 {[%clk 0:00:16]}  Rca3 {[%clk 0:01:45]} 28. Rc1 {[%clk 0:00:06]}  Bxa2 {[%clk 0:01:43]} 0-1


[Site "https://www.chess.com"]

[Event "Titled Tuesday Blitz March 07 Early 2023"]
[White "Hartikainen, Jarmo"]
[Black "Mushini Ajay"]
[WhiteFideId "503134"]
[BlackFideId "35066188"]
[WhiteElo "2196"]
[BlackElo "2145"]
[Result "1-0"]
[Round "03"]
[TimeControl "180+2"]
[Date "2023.03.07"]
[WhiteClock "0:00:10"]
[BlackClock "0:00:11"]

1. e4 {[%clk 0:02:56]}  Nc6 {[%clk 0:02:57]} 2. Nf3 {[%clk 0:02:55]}  Nf6 {[%clk 0:02:56]} 3. Nc3 {[%clk 0:02:24]}  e5 {[%clk 0:02:53]} 4. Bb5 {[%clk 0:02:21]}  Bc5 {[%clk 0:02:50]} 5. O-O {[%clk 0:02:17]}  d6 {[%clk 0:02:47]} 6. d4 {[%clk 0:02:09]}  exd4 {[%clk 0:02:43]} 7. Nxd4 {[%clk 0:02:08]}  Bd7 {[%clk 0:02:43]} 8. Bxc6 {[%clk 0:02:06]}  Bxc6 {[%clk 0:02:40]} 9. Nxc6 {[%clk 0:01:59]}  bxc6 {[%clk 0:02:40]} 10. Bg5 {[%clk 0:01:59]}  h6 {[%clk 0:02:37]} 11. Bh4 {[%clk 0:01:57]}  g5 {[%clk 0:02:27]} 12. Bg3 {[%clk 0:01:55]}  h5 {[%clk 0:02:28]} 13. e5 {[%clk 0:01:40]}  h4 {[%clk 0:02:26]} 14. exf6 {[%clk 0:01:37]}  hxg3 {[%clk 0:02:26]} 15. Ne4 {[%clk 0:01:09]}  gxf2+ {[%clk 0:02:06]} 16. Kh1 {[%clk 0:01:08]}  Bb6 {[%clk 0:02:03]} 17. Qg4 {[%clk 0:01:02]}  Qd7 {[%clk 0:02:00]} 18. Qxd7+ {[%clk 0:00:57]}  Kxd7 {[%clk 0:02:01]} 19. Nxf2 {[%clk 0:00:51]}  Rh4 {[%clk 0:01:52]} 20. g3 {[%clk 0:00:18]}  Rd4 {[%clk 0:01:09]} 21. Rad1 {[%clk 0:00:18]}  Re8 {[%clk 0:01:04]} 22. Rxd4 {[%clk 0:00:17]}  Bxd4 {[%clk 0:01:04]} 23. c3 {[%clk 0:00:17]}  Bxf2 {[%clk 0:01:02]} 24. Rxf2 {[%clk 0:00:17]}  g4 {[%clk 0:00:59]} 25. h3 {[%clk 0:00:16]}  gxh3 {[%clk 0:00:58]} 26. Kh2 {[%clk 0:00:17]}  Re5 {[%clk 0:00:55]} 27. Kxh3 {[%clk 0:00:17]}  Ke6 {[%clk 0:00:55]} 28. g4 {[%clk 0:00:16]}  Rg5 {[%clk 0:00:52]} 29. Kh4 {[%clk 0:00:16]}  Ra5 {[%clk 0:00:48]} 30. g5 {[%clk 0:00:17]}  Rxa2 {[%clk 0:00:48]} 31. g6 {[%clk 0:00:17]}  Ra4+ {[%clk 0:00:44]} 32. Kg5 {[%clk 0:00:14]}  Ra5+ {[%clk 0:00:41]} 33. Kh6 {[%clk 0:00:13]}  Rb5 {[%clk 0:00:16]} 34. Kg7 {[%clk 0:00:12]}  fxg6 {[%clk 0:00:15]} 35. Re2+ {[%clk 0:00:12]}  Kf5 {[%clk 0:00:15]} 36. f7 {[%clk 0:00:10]}  Kg4 {[%clk 0:00:14]} 37. f8=Q {[%clk 0:00:10]}  g5 {[%clk 0:00:15]} 38. Rg2+ {[%clk 0:00:10]}  Kh4 {[%clk 0:00:14]} 39. Qf2+ {[%clk 0:00:10]}  Kh3 {[%clk 0:00:12]} 40. Qf3+ {[%clk 0:00:10]}  Kh4 {[%clk 0:00:11]} 41. Qg4# {[%clk 0:00:10]} 1-0


[Site "https://www.chess.com"]

[Event "Titled Tuesday Blitz March 07 Early 2023"]
[White "Rosh Jain"]
[Black "Kujawski, Adam"]
[WhiteFideId "25789465"]
[BlackFideId "1100920"]
[WhiteElo "2233"]
[BlackElo "2054"]
[Result "1-0"]
[Round "03"]
[TimeControl "180+2"]
[Date "2023.03.07"]
[WhiteClock "0:01:14"]
[BlackClock "0:00:09"]

1. e4 {[%clk 0:03:00]}  e5 {[%clk 0:02:31]} 2. Nf3 {[%clk 0:02:59]}  Nc6 {[%clk 0:02:32]} 3. Bb5 {[%clk 0:02:58]}  a6 {[%clk 0:02:32]} 4. Ba4 {[%clk 0:02:58]}  Nf6 {[%clk 0:02:32]} 5. O-O {[%clk 0:02:58]}  Be7 {[%clk 0:02:32]} 6. Re1 {[%clk 0:02:58]}  b5 {[%clk 0:02:32]} 7. Bb3 {[%clk 0:02:59]}  O-O {[%clk 0:02:32]} 8. c3 {[%clk 0:02:59]}  d5 {[%clk 0:02:32]} 9. exd5 {[%clk 0:02:59]}  Nxd5 {[%clk 0:02:32]} 10. Nxe5 {[%clk 0:02:59]}  Nxe5 {[%clk 0:02:32]} 11. Rxe5 {[%clk 0:03:00]}  c6 {[%clk 0:02:33]} 12. Bxd5 {[%clk 0:02:56]}  cxd5 {[%clk 0:02:32]} 13. d4 {[%clk 0:02:56]}  Bd6 {[%clk 0:02:29]} 14. Re1 {[%clk 0:02:55]}  Qh4 {[%clk 0:02:27]} 15. g3 {[%clk 0:02:55]}  Qh3 {[%clk 0:02:27]} 16. Qd3 {[%clk 0:02:55]}  Bg4 {[%clk 0:01:40]} 17. Qf1 {[%clk 0:02:51]}  Qh5 {[%clk 0:01:38]} 18. Be3 {[%clk 0:02:47]}  f5 {[%clk 0:01:33]} 19. f4 {[%clk 0:02:47]}  g5 {[%clk 0:01:26]} 20. Nd2 {[%clk 0:02:44]}  Rae8 {[%clk 0:01:22]} 21. Qf2 {[%clk 0:02:39]}  Kh8 {[%clk 0:01:18]} 22. a4 {[%clk 0:02:34]}  Rxe3 {[%clk 0:00:19]} 23. Rxe3 {[%clk 0:02:27]}  gxf4 {[%clk 0:00:20]} 24. gxf4 {[%clk 0:02:26]}  Qh6 {[%clk 0:00:20]} 25. Rae1 {[%clk 0:01:28]}  Bxf4 {[%clk 0:00:18]} 26. Re6 {[%clk 0:01:27]}  Qg5 {[%clk 0:00:15]} 27. h4 {[%clk 0:01:24]}  Qg7 {[%clk 0:00:12]} 28. Qxf4 {[%clk 0:01:18]}  Rg8 {[%clk 0:00:09]} 29. Qe5 {[%clk 0:01:14]} 1-0


[Site "https://www.chess.com"]

[Event "Titled Tuesday Blitz March 07 Early 2023"]
[White "babbilator"]
[Black "Sanchez, Robert"]
[BlackFideId "2034360"]
[WhiteElo "2185"]
[BlackElo "2349"]
[Result "1-0"]
[Round "03"]
[TimeControl "180+2"]
[Date "2023.03.07"]
[WhiteClock "0:00:13"]
[BlackClock "0:01:44"]

1. e4 {[%clk 0:03:00]}  e6 {[%clk 0:02:59]} 2. Nc3 {[%clk 0:02:59]}  d5 {[%clk 0:02:59]} 3. d4 {[%clk 0:02:58]}  Nf6 {[%clk 0:02:59]} 4. e5 {[%clk 0:02:56]}  Ne4 {[%clk 0:02:59]} 5. f4 {[%clk 0:02:56]}  Qh4+ {[%clk 0:02:58]} 6. g3 {[%clk 0:02:42]}  Nxg3 {[%clk 0:02:58]} 7. Nf3 {[%clk 0:02:42]}  Qh5 {[%clk 0:02:58]} 8. Rg1 {[%clk 0:02:31]}  Nxf1 {[%clk 0:02:54]} 9. Rxf1 {[%clk 0:02:30]}  a6 {[%clk 0:02:54]} 10. Be3 {[%clk 0:02:29]}  Nd7 {[%clk 0:02:54]} 11. Qd2 {[%clk 0:02:29]}  c5 {[%clk 0:02:54]} 12. O-O-O {[%clk 0:02:29]}  c4 {[%clk 0:02:54]} 13. Ne2 {[%clk 0:02:22]}  b5 {[%clk 0:02:46]} 14. Ng3 {[%clk 0:02:22]}  Qg4 {[%clk 0:02:45]} 15. Qg2 {[%clk 0:02:11]}  Be7 {[%clk 0:02:39]} 16. h3 {[%clk 0:01:52]}  Qg6 {[%clk 0:02:39]} 17. h4 {[%clk 0:01:37]}  h6 {[%clk 0:02:34]} 18. h5 {[%clk 0:01:33]}  Qh7 {[%clk 0:02:34]} 19. Rg1 {[%clk 0:01:31]}  b4 {[%clk 0:02:32]} 20. Ne2 {[%clk 0:01:30]}  Rg8 {[%clk 0:02:28]} 21. f5 {[%clk 0:01:19]}  Qxf5 {[%clk 0:02:25]} 22. Bxh6 {[%clk 0:01:13]}  a5 {[%clk 0:02:14]} 23. Bxg7 {[%clk 0:00:59]}  a4 {[%clk 0:02:09]} 24. h6 {[%clk 0:00:42]}  b3 {[%clk 0:02:08]} 25. Ng3 {[%clk 0:00:37]}  Qh7 {[%clk 0:02:01]} 26. a3 {[%clk 0:00:27]}  c3 {[%clk 0:01:53]} 27. Rd3 {[%clk 0:00:19]}  cxb2+ {[%clk 0:01:47]} 28. Kxb2 {[%clk 0:00:20]}  Ba6 {[%clk 0:01:47]} 29. Rc3 {[%clk 0:00:15]}  Nb6 {[%clk 0:01:47]} 30. cxb3 {[%clk 0:00:14]}  axb3 {[%clk 0:01:47]} 31. Nd2 {[%clk 0:00:13]}  Na4+ {[%clk 0:01:44]} 1-0


[Site "https://www.chess.com"]